bitfinex-derivatives/quotes_ETHF0:USTF0_20240904
["timestamp","ask_amount","ask_price","bid_price","bid_amount"]
[1725417946123,2.92,2366.3,2366.0,0.00634156]
[1725417946124,6.1278,2366.3,2366.0,0.00634156]
[1725417946324,6.5143,2366.3,2366.0,0.00634156]
[1725417946523,2.92,2366.1,2366.0,0.00634156]
[1725417946721,3.34269,2366.1,2366.0,0.00634156]
[1725417949435,3.5943,2366.3,2366.0,0.00634156]
[1725417949436,6.5143,2366.3,2366.0,0.00634156]
[1725417949626,6.93696,2366.3,2366.0,0.00634156]
[1725417950127,0.42269,2366.2,2366.0,0.00634156]
[1725417950424,6.93697,2366.3,2366.0,0.00634156]
[1725417950631,0.42268,2366.2,2366.0,0.00634156]
[1725417951220,6.5143,2366.3,2366.0,0.00634156]
[1725417951221,0.42269,2366.1,2366.0,0.00634156]
[1725417952230,3.34269,2366.1,2366.0,0.00634156]
[1725417955427,6.5143,2366.3,2366.0,0.00634156]
[1725417955831,6.93697,2366.3,2366.0,0.00634156]
[1725417956126,6.5143,2366.3,2366.0,0.00634156]
[1725417956435,4.62346578,2366.5,2366.1,4.2264]
[1725417956436,0.00634156,2366.5,2366.1,4.2264]
[1725417956633,0.00634156,2366.5,2366.2,0.7496]
[1725417956828,0.00634156,2366.5,2366.3,0.3732]
[1725417957028,0.42896156,2366.5,2366.3,0.3732]
[1725417957233,0.42896156,2366.5,2366.3,4.5988]
[1725417957234,0.00634156,2366.5,2366.3,4.5988]
[1725417958231,0.42897156,2366.5,2366.3,4.5988]
[1725417958929,0.00634156,2366.5,2366.4,4.64824]
[1725417959321,0.00634156,2366.5,2366.4,10.64824]
[1725417959841,0.00634156,2366.5,2366.4,10.2256]
[1725417960025,0.00634156,2366.5,2366.4,4.2256]
[1725417960634,0.42896156,2366.5,2366.3,0.3732]
[1725417961143,0.42896156,2366.5,2366.2,3.2078]
[1725417961144,0.00634156,2366.5,2366.2,3.2078]
[1725417961329,0.42264,2366.4,2366.2,3.2078]
[1725417962429,1.05661,2366.4,2366.2,3.2078]
[1725417962640,4.08796,2366.3,2366.2,3.2078]
[1725417963140,4.08796,2366.3,2366.1,0.3902]
[1725417963141,3.6653,2366.3,2366.1,0.3902]
[1725417963344,4.08797,2366.3,2366.1,0.3902]
[1725417963531,3.33430165,2366.5,2366.2,4.64908]
[1725417963729,3.21414156,2366.5,2366.3,0.42264]
[1725417964034,0.00634156,2366.5,2366.4,0.3909]
[1725417964743,0.00634156,2366.5,2366.4,5.03914]
[1725417965254,0.00634156,2366.5,2366.4,0.3909]
[1725417965531,0.42268,2366.2,2366.1,3.598]
[1725417965734,0.42267,2366.3,2366.1,3.598]
[1725417966134,0.79387,2366.3,2366.1,3.598]
[1725417967639,0.79387,2366.3,2366.1,0.3902]
[1725417967844,0.79387,2366.3,2366.1,3.598]
[1725417968031,0.3712,2366.3,2366.1,3.598]
[1725417968340,0.00634156,2366.5,2366.2,4.2264]
[1725417968341,0.42897156,2366.5,2366.2,4.2264]
[1725417968536,0.42897156,2366.5,2366.3,0.42265]
[1725417968537,0.00634156,2366.5,2366.3,0.42265]
[1725417968735,0.00634156,2366.5,2366.2,0.78546]
[1725417970040,0.00634156,2366.5,2366.2,0.3628]
[1725417970232,0.00634156,2366.5,2366.3,0.81415]
[1725417970742,0.42897156,2366.5,2366.2,0.78547]
[1725417971444,0.00634156,2366.5,2366.3,0.42266]
[1725417971737,0.42897156,2366.5,2366.2,0.78547]
[1725417972140,0.00634156,2366.5,2366.3,0.42265]
[1725417975944,0.00634156,2366.5,2366.4,0.42264]
[1725417976352,0.00634156,2366.5,2366.4,10.64824]
[1725417976947,0.00634156,2366.5,2366.4,13.85604]
[1725417977149,0.00634156,2366.5,2366.4,4.64824]
[1725417977545,0.00634156,2366.5,2366.4,10.64824]
[1725417978347,0.00634156,2366.5,2366.4,4.64824]
[1725417979248,0.00634156,2366.5,2366.1,3.598]
[1725417979443,0.42268,2366.2,2366.1,3.598]
[1725417979752,0.42269,2366.1,2366.0,0.00634156]
[1725417980068,1.17039,2366.1,2366.0,0.00634156]
[1725417984859,0.7477,2366.1,2366.0,0.00634156]
[1725417985746,1.17039,2366.1,2366.0,0.00634156]
[1725417985954,0.42269,2366.1,2366.0,0.00634156]
[1725417986946,1.17529,2366.2,2366.0,0.00634156]
[1725417987558,0.3676,2366.2,2366.0,0.42904156]
[1725417988457,4.12334156,2366.5,2366.1,7.5065]
[1725417988658,4.12334156,2366.5,2366.4,0.42264]
[1725417989060,4.12334156,2366.5,2366.3,0.42265]
[1725417989682,0.00634156,2366.5,2366.3,0.42265]
[1725417990966,0.00634156,2366.5,2366.2,0.81417]
[1725417991153,0.42897156,2366.5,2366.2,0.81417]
[1725417991466,0.00634156,2366.5,2366.1,0.3601]
[1725417991664,0.42265,2366.4,2366.1,0.7364]
[1725417991958,0.42265,2366.4,2366.1,1.15909]
[1725417992368,0.00634156,2366.5,2366.3,0.42265]
[1725417992765,0.00634156,2366.5,2366.4,4.64824]
[1725417997678,0.00634156,2366.5,2366.4,0.42264]
[1725417997974,0.00634156,2366.5,2366.4,4.64824]
[1725417999383,0.00634156,2366.5,2366.4,0.42264]
[1725417999977,0.00634156,2366.5,2366.4,4.64824]
[1725418000176,0.00634156,2366.5,2366.4,0.42264]
[1725418001284,0.00634156,2366.5,2366.4,4.64824]
[1725418001989,0.00634156,2366.5,2366.4,10.64824]
[1725418002280,0.00634156,2366.5,2366.4,5.02494]
[1725418006687,0.00634156,2366.5,2366.4,4.64824]
[1725418007591,0.00634156,2366.5,2366.3,6.55045]
[1725418008186,0.00634156,2366.5,2366.3,6.1278]
[1725418008390,0.42898156,2366.5,2366.3,3.2078]
[1725418009383,0.42264,2366.4,2366.3,3.2078]
[1725418009589,0.38574156,2366.5,2366.3,3.2078]
[1725418009888,0.80837156,2366.5,2366.3,3.2078]
[1725418010392,0.38574156,2366.5,2366.3,3.63045]
[1725418011496,0.80837156,2366.5,2366.3,3.2078]
[1725418011787,0.38574156,2366.5,2366.3,3.63046]
[1725418012395,0.38574156,2366.5,2366.3,3.63045]
[1725418013095,0.00634156,2366.5,2366.4,4.64824]
[1725418013294,0.00634156,2366.5,2366.4,5.04624]
[1725418014984,0.00634156,2366.5,2366.4,0.42264]
[1725418019200,0.00634156,2366.5,2366.3,6.55044]
[1725418019395,0.00634156,2366.5,2366.1,0.3601]
[1725418019695,0.42264,2366.4,2366.1,0.3601]
[1725418019891,0.3882,2366.3,2366.1,0.78279]
[1725418020092,0.3882,2366.3,2366.2,0.42268]
[1725418020494,0.3882,2366.3,2366.2,0.80518]
[1725418020896,0.00634156,2366.5,2366.2,0.3825]
[1725418021296,0.00634156,2366.5,2366.3,0.42266]
[1725418021895,0.00634156,2366.5,2366.4,0.42264]
[1725418022295,0.00634156,2366.5,2366.4,4.64824]
[1725418022909,0.00634156,2366.5,2366.4,0.42264]
[1725418025104,0.00634156,2366.5,2366.4,4.64824]
[1725418025497,0.7648,2366.9,2366.8,0.42257]
[1725418025807,0.3826,2366.9,2366.8,0.42257]
[1725418026307,0.7566,2367.1,2366.9,0.42255]
[1725418026501,1.1509,2367.1,2366.8,0.42256]
[1725418026698,0.42254,2367.0,2366.7,0.78618]
[1725418026897,1.57343,2367.1,2366.8,0.42256]
[1725418027109,1.1509,2367.1,2366.6,6.1278]
[1725418027300,1.1509,2367.1,2366.5,0.79602]
[1725418027301,0.42257,2366.8,2366.5,0.79602]
[1725418027497,0.42261,2366.6,2366.2,4.00457]
[1725418027799,4.0873,2366.7,2366.2,3.2078]
[1725418028005,0.42263,2366.5,2366.2,3.2078]
[1725418028810,1.1673,2366.7,2366.3,0.42265]
[1725418029107,0.42261,2366.6,2366.3,0.42265]
[1725418029502,0.42263,2366.5,2366.2,4.01757]
[1725418029711,0.42262,2366.6,2366.2,4.01757]
[1725418031215,0.42264,2366.4,2366.2,3.5949]
[1725418031604,0.3779,2366.3,2366.2,3.5949]
[1725418032005,0.3779,2366.3,2366.2,4.01758]
[1725418032208,0.773,2366.7,2366.2,10.7413]
[1725418032514,0.773,2366.7,2366.4,0.42264]
[1725418032714,1.19559,2366.7,2366.4,0.42264]
[1725418033016,0.3779,2366.8,2366.6,0.42261]
[1725418033319,0.3779,2366.8,2366.5,0.81521]
[1725418034510,0.3779,2366.8,2366.6,0.4226]
[1725418034816,0.3779,2366.8,2366.6,0.3829]
[1725418035014,0.3779,2366.8,2366.6,0.8055]
[1725418036019,4.5093,2367.0,2366.6,0.8055]
[1725418036020,0.3923,2367.0,2366.8,0.42257]
[1725418036220,3.99003,2367.1,2366.9,0.3852]
[1725418036530,4.37303,2367.1,2366.9,0.3852]
[1725418036820,3.2078,2367.1,2367.0,3.34253]
[1725418037014,0.00634156,2367.2,2367.1,0.42252]
[1725418037214,0.00634156,2367.2,2367.1,4.64732]
[1725418038313,0.00634156,2367.2,2367.1,10.64732]
[1725418038519,0.00634156,2367.2,2367.1,13.56732]
[1725418041128,0.00634156,2367.2,2367.1,16.77512]
[1725418042524,0.098,2367.8,2367.7,0.42241]
[1725418042719,11.151,2368.4,2367.8,0.42238]
[1725418042720,0.42232,2368.2,2367.8,0.42238]
[1725418042924,0.42232,2368.2,2367.9,0.7626]
[1725418043226,1.1297,2368.3,2367.9,1.18496]
[1725418043426,1.1297,2368.3,2368.0,0.42235]
[1725418043427,1.13604156,2368.3,2368.0,0.42235]
[1725418043725,1.13604156,2368.3,2367.9,0.76894156]
[1725418043726,1.55834156,2368.3,2367.9,1.19130156]
[1725418045117,0.42232,2368.2,2367.9,1.19130156]
[1725418045313,0.42232,2368.2,2367.9,0.76894156]
[1725418045514,0.42232,2368.2,2367.9,0.00634156]
[1725418045515,0.42236,2368.0,2367.9,0.00634156]
[1725418046317,3.2078,2368.2,2367.9,0.00634156]
[1725418046318,0.42234,2368.1,2367.9,0.00634156]
[1725418047621,1.13604156,2368.3,2367.9,0.00634156]
[1725418047921,0.42233,2368.2,2367.9,0.00634156]
[1725418049121,0.42233,2368.2,2367.9,0.42871156]
[1725418049321,1.55836156,2368.3,2367.9,0.42871156]
[1725418049625,0.42232,2368.2,2367.9,0.42871156]
[1725418050819,1.55835156,2368.3,2367.9,0.00634156]
[1725418051125,1.55835156,2368.3,2367.9,0.42870156]
[1725418051313,1.55835156,2368.3,2368.0,0.42235]
[1725418051728,0.42236,2368.0,2367.9,0.00634156]
[1725418052122,1.05567,2368.6,2367.9,0.00634156]
[1725418052123,0.098,2368.8,2367.9,6.42534156]
[1725418052424,0.214,2369.6,2368.8,2.92]
[1725418052633,0.21014899,2369.8,2369.3,6.1278]
[1725418052927,0.42206,2369.7,2369.3,6.1278]
[1725418053125,0.42208,2369.6,2369.3,6.1278]
[1725418053430,0.42208,2369.6,2369.3,3.2078]
[1725418053622,1.128,2369.5,2369.3,3.2078]
[1725418054018,5.3488,2369.5,2369.3,3.2078]
[1725418054321,0.42212,2369.3,2369.2,0.00632791]
[1725418054633,4.64292,2369.3,2369.2,0.00632791]
[1725418054834,10.64292,2369.3,2369.2,0.00632791]
[1725418056124,4.64292,2369.3,2369.2,0.00632791]
[1725418056531,10.64292,2369.3,2369.2,0.00632791]
[1725418056829,4.64292,2369.3,2369.2,0.00632791]
[1725418057023,4.2208,2369.3,2369.2,0.00632791]
[1725418058425,0.7527,2369.5,2369.2,2.92632791]
[1725418058626,0.3602,2369.8,2369.4,6.1278]
[1725418058832,0.7835,2369.9,2369.7,3.2078]
[1725418059536,0.7835,2369.9,2369.7,6.1278]
[1725418060030,4.4772,2370.3,2369.7,6.1278]
[1725418060235,0.3888,2370.2,2370.0,6.1278]
[1725418060431,0.3888,2370.2,2370.0,3.2078]
[1725418060630,4.2192,2370.1,2370.0,3.2078]
[1725418061033,4.608,2370.2,2370.0,3.2078]
[1725418061233,0.3888,2370.2,2370.0,3.2078]
[1725418061738,4.608,2370.2,2370.0,3.2078]
[1725418062239,5.02996,2370.2,2370.0,3.2078]
[1725418062737,0.3888,2370.2,2370.0,3.2078]
[1725418064137,0.3888,2370.2,2369.4,0.098]
[1725418064138,0.42209,2369.5,2369.4,0.098]
[1725418064436,0.42215,2369.2,2368.6,3.132]
[1725418064642,3.2078,2369.5,2368.6,2.92]
[1725418064844,3.2078,2369.5,2368.6,3.34224]
[1725418065137,1.05518,2369.7,2368.7,0.42223]
[1725418065138,3.2078,2369.2,2368.7,0.42223]
[1725418065440,0.00628243,2369.2,2368.9,0.42219]
[1725418065945,0.00628243,2369.2,2369.0,0.7826]
[1725418067336,0.00628243,2369.2,2369.0,1.20477]
[1725418067539,0.00628243,2369.2,2369.1,0.42216]
[1725418067736,0.00628243,2369.2,2369.0,4.12477]
[1725418067937,0.00628243,2369.2,2369.0,3.7026]
[1725418068933,0.42216,2369.1,2369.0,3.7026]
[1725418069135,0.42843243,2369.2,2369.0,0.7826]
[1725418069542,0.00628243,2369.2,2369.0,0.7826]
[1725418070343,0.42216,2369.1,2369.0,0.7826]
[1725418070537,0.00628243,2369.2,2369.0,0.7826]
[1725418070742,0.42843243,2369.2,2369.0,0.7826]
[1725418071436,0.00628243,2369.2,2369.0,1.20476]
[1725418071639,0.00628243,2369.2,2369.0,0.7826]
[1725418072040,0.00628243,2369.2,2369.0,1.20478]
[1725418074754,0.00628243,2369.2,2369.0,0.7826]
[1725418075356,0.42843243,2369.2,2369.0,0.7826]
[1725418075747,0.00628243,2369.2,2369.0,0.7826]
[1725418076464,0.42216,2369.1,2369.0,0.7826]
[1725418076755,0.42843243,2369.2,2369.0,0.7826]
[1725418077060,0.42216,2369.1,2369.0,0.7826]
[1725418077355,0.00628243,2369.2,2369.0,0.7826]
[1725418077356,0.42843243,2369.2,2369.0,0.7826]
[1725418077956,0.42216,2369.1,2369.0,0.7826]
[1725418078160,0.00628243,2369.2,2369.0,0.7826]
[1725418078161,0.42843243,2369.2,2369.0,0.7826]
[1725418078545,0.42216,2369.1,2369.0,0.7826]
[1725418079452,0.42843243,2369.2,2369.0,0.7826]
[1725418081163,0.42216,2369.1,2369.0,0.7826]
[1725418083359,0.00628243,2369.2,2369.0,0.7826]
[1725418083360,0.42843243,2369.2,2369.0,0.7826]
[1725418083859,0.00628243,2369.2,2369.0,0.7826]
[1725418085755,0.00628243,2369.2,2369.0,1.20477]
[1725418085955,0.00628243,2369.2,2369.0,0.7826]
[1725418087363,0.00628243,2369.2,2368.8,3.2078]
[1725418087553,1.06167243,2369.2,2368.7,0.38502791]
[1725418087753,0.383,2369.1,2368.7,0.38502791]
[1725418088063,0.42221,2368.8,2368.7,0.38502791]
[1725418088458,0.42221,2368.8,2368.7,0.00632791]
[1725418089864,3.2078,2369.0,2368.7,0.00632791]
[1725418089865,0.42221,2368.9,2368.7,0.00632791]
[1725418090367,0.42218,2369.0,2368.7,0.00632791]
[1725418090866,0.42217,2369.1,2368.7,0.00632791]
[1725418091066,0.42843243,2369.2,2368.7,0.42854791]
[1725418091262,0.00628243,2369.2,2368.8,3.3185]
[1725418091568,0.00628243,2369.2,2369.0,3.34217]
[1725418091771,0.00628243,2369.2,2369.1,0.384]
[1725418091971,0.00628243,2369.2,2369.1,0.7585]
[1725418092656,4.64922243,2369.2,2369.1,0.3745]
[1725418092862,5.40773243,2369.2,2368.8,0.3902]
[1725418093061,0.42218,2369.0,2368.9,0.3745]
[1725418093364,2.92,2369.1,2368.7,0.00632791]
[1725418093564,0.42221,2368.8,2368.7,0.00632791]
[1725418093969,4.64381,2368.8,2368.7,0.00632791]
[1725418096070,0.42221,2368.8,2368.7,0.00632791]
[1725418096763,4.64381,2368.8,2368.7,0.00632791]
[1725418097472,0.42221,2368.8,2368.7,0.00632791]
[1725418098062,4.64381,2368.8,2368.7,0.00632791]
[1725418099776,0.4222,2368.9,2368.7,0.00632791]
[1725418100169,0.53826656,2369.0,2368.7,0.00632791]
[1725418100371,0.76478243,2369.2,2368.7,0.42854791]
[1725418100569,1.18694243,2369.2,2368.7,0.42855791]
[1725418101077,1.30409005,2369.2,2368.7,0.00632791]
[1725418101272,1.30408005,2369.2,2368.7,0.00632791]
[1725418101669,0.00628243,2369.2,2368.8,2.92]
[1725418101962,0.00628243,2369.2,2368.9,0.3848]
[1725418102169,0.00628243,2369.2,2369.0,0.3709]
[1725418102572,0.00628243,2369.2,2369.1,2.92]
[1725418112686,0.00628243,2369.2,2369.1,7.1408]
[1725418112888,0.00628243,2369.2,2369.1,7.56296]
[1725418113078,0.00628243,2369.2,2369.1,7.1408]
[1725418116485,0.00628243,2369.2,2369.1,7.56296]
[1725418116688,0.00628243,2369.2,2369.1,7.1408]
[1725418119088,0.00628243,2369.2,2369.1,7.56296]
[1725418119286,0.00628243,2369.2,2369.1,7.1408]
[1725418120990,0.00628243,2369.2,2369.1,10.3486]
[1725418122292,0.00628243,2369.2,2369.1,10.77076]
[1725418122679,0.00628243,2369.2,2369.1,10.3486]
[1725418123993,0.00628243,2369.2,2369.1,6.1278]
[1725418124188,0.00628243,2369.2,2369.1,10.77076]
[1725418125799,0.212,2369.7,2369.5,0.42207]
[1725418126096,3.499,2369.8,2369.6,3.3124]
[1725418126591,3.499,2369.8,2369.6,0.3924]
[1725418126592,0.42205,2369.7,2369.6,0.3924]
[1725418126795,1.19035,2369.7,2369.5,3.2815]
[1725418127998,0.7683,2369.7,2369.5,3.2815]
[1725418129086,0.42208,2369.6,2369.4,3.2078]
[1725418129288,0.8381,2369.7,2369.4,6.1278]
[1725418129685,1.26016,2369.7,2369.4,6.1278]
[1725418131495,0.42209,2369.5,2369.3,0.3742]
[1725418131695,0.42207,2369.6,2369.3,0.3742]
[1725418131885,0.42208,2369.6,2369.3,0.3742]
[1725418132301,0.42209,2369.5,2369.3,0.3742]
[1725418132492,0.8381,2369.7,2369.3,0.3742]
[1725418132692,0.42208,2369.6,2369.3,0.3742]
[1725418134803,0.42209,2369.5,2369.3,0.3742]
[1725418135098,0.8381,2369.7,2369.3,0.3742]
[1725418135401,0.4221,2369.5,2369.3,0.3742]
[1725418136403,0.42209,2369.6,2369.3,0.3742]
[1725418136598,0.8381,2369.7,2369.3,0.3742]
[1725418136802,0.42209,2369.5,2369.3,0.3742]
[1725418137198,0.42208,2369.6,2369.3,0.3742]
[1725418138603,1.26016,2369.7,2369.4,2.92]
[1725418138807,1.26016,2369.7,2369.4,6.1278]
[1725418140305,1.26016,2369.7,2369.4,3.2078]
[1725418141103,0.8381,2369.7,2369.4,3.2078]
[1725418141405,1.26015,2369.7,2369.4,3.2078]
[1725418141797,0.8381,2369.7,2369.4,3.2078]
[1725418141997,0.42209,2369.5,2369.4,3.2078]
[1725418142402,4.22,2369.5,2369.4,3.2078]
[1725418143901,0.7683,2369.7,2369.4,3.2078]
[1725418144106,3.499,2369.8,2369.5,0.80218]
[1725418144309,3.499,2369.8,2369.5,1.16318]
[1725418146206,3.499,2369.8,2369.6,0.42207]
[1725418146706,3.499,2369.8,2369.5,1.16318]
[1725418147102,3.499,2369.8,2369.5,0.7411]
[1725418147305,4.31492,2369.9,2369.5,0.7411]
[1725418147609,4.31493,2369.9,2369.5,0.7411]
[1725418148811,3.8929,2369.9,2369.5,0.7411]
[1725418149309,3.8929,2369.9,2369.6,0.42207]
[1725418149514,4.31492,2369.9,2369.5,1.16318]
[1725418149717,3.8929,2369.9,2369.5,0.7411]
[1725418150103,4.31492,2369.9,2369.5,1.16318]
[1725418150307,3.499,2369.9,2369.6,0.42206]
[1725418152201,3.499,2369.9,2369.5,0.7411]
[1725418152406,0.42205,2369.8,2369.5,0.7411]
[1725418152909,0.42207,2369.7,2369.5,0.7411]
[1725418153416,0.42209,2369.5,2369.4,3.2078]
[1725418155007,4.64209,2369.5,2369.4,3.2078]
[1725418156715,4.64209,2369.5,2369.2,4.38417232]
[1725418156913,0.42209,2369.5,2369.2,4.38417232]
[1725418157212,0.42212,2369.3,2369.2,1.46417232]
[1725418157420,1.47744,2369.3,2369.2,1.09657232]
[1725418157608,14.90604,2369.3,2369.2,1.09657232]
[1725418158309,13.85072,2369.3,2369.2,1.09657232]
[1725418158513,10.64292,2369.3,2369.2,1.09657232]
[1725418161216,0.42209,2369.5,2369.2,1.83597232]
[1725418161416,0.78339,2369.5,2369.2,1.83597232]
[1725418163022,3.92108,2369.6,2369.2,1.83597232]
[1725418163921,3.499,2369.6,2369.2,2.25810232]
[1725418165115,3.92107,2369.6,2369.2,2.25810232]
[1725418165313,3.92107,2369.6,2369.2,1.83597232]
[1725418166824,0.42209,2369.5,2369.2,1.83597232]
[1725418169727,3.92108,2369.6,2369.2,1.83597232]
[1725418170729,0.42209,2369.5,2369.2,1.83597232]
[1725418171437,0.42211,2369.4,2369.2,1.83597232]
[1725418172837,0.42212,2369.3,2369.2,1.47487232]
[1725418173435,4.64292,2369.3,2369.2,1.47487232]
[1725418173740,4.64292,2369.3,2369.2,1.09657232]
[1725418174933,11.90715653,2369.3,2369.2,1.09657232]
[1725418175137,1.4775,2369.2,2369.1,1.64582593]
[1725418175435,14.42156,2369.2,2369.1,0.74935631]
[1725418175625,1.47757,2369.1,2369.0,2.19123284]
[1725418175945,0.42221,2368.8,2368.7,0.00632791]
[1725418176435,0.80061,2368.8,2368.7,0.00632791]
[1725418177238,6.07775,2368.8,2368.7,0.00632791]
[1725418177437,12.14715,2368.8,2368.7,0.00632791]
[1725418178339,12.51075,2368.8,2368.7,0.00632791]
[1725418179139,4.64381,2368.8,2368.7,0.00632791]
[1725418179836,4.117,2369.2,2368.7,2.92632791]
[1725418180044,4.117,2369.2,2368.8,1.5224]
[1725418180346,4.53914,2369.2,2368.8,1.1002]
[1725418181231,0.42216,2369.1,2368.8,1.1002]
[1725418181637,0.42218,2369.0,2368.8,1.1002]
[1725418181836,0.4222,2368.9,2368.8,1.1002]
[1725418183644,0.4222,2368.9,2368.8,0.737]
[1725418187543,4.6438,2368.9,2368.8,0.737]
[1725418187950,4.2216,2368.9,2368.8,0.737]
[1725418188450,4.6438,2368.9,2368.8,0.737]
[1725418189055,0.4222,2368.9,2368.8,0.737]
[1725418189849,4.6438,2368.9,2368.8,0.3628]
[1725418193250,4.6438,2368.9,2368.7,0.00632791]
[1725418193251,0.42221,2368.8,2368.7,0.00632791]
[1725418193450,6.08885,2368.8,2368.7,0.00632791]
[1725418195849,5.03331,2368.8,2368.7,0.00632791]
[1725418196254,6.08885,2368.8,2368.7,0.00632791]
[1725418199352,4.64381,2368.8,2368.7,0.00632791]
[1725418201049,12.91935,2368.8,2368.7,0.00632791]
[1725418201255,0.42228,2368.4,2368.3,0.3903]
[1725418201574,1.478,2368.4,2368.3,0.3903]
[1725418201755,5.7004,2368.4,2368.3,0.3903]
[1725418201956,0.42228,2368.4,2368.3,0.3903]
[1725418202966,0.42228,2368.4,2368.3,0.7706]
[1725418203362,4.64468,2368.4,2368.3,0.3903]
[1725418203562,0.42228,2368.4,2368.3,0.3903]
[1725418204764,4.64468,2368.4,2368.3,0.3903]
[1725418205060,4.64468,2368.4,2368.1,4.43412791]
[1725418205061,4.2224,2368.4,2368.1,3.21412791]
[1725418205259,0.42232,2368.2,2368.1,0.00632791]
[1725418205654,11.70053,2368.2,2368.1,0.00632791]
[1725418205849,12.07893,2368.2,2368.1,0.00632791]
[1725418206962,12.07893,2368.2,2367.7,0.3829]
[1725418206963,0.42239,2367.8,2367.7,0.3829]
[1725418207157,1.22,2367.8,2367.4,0.3748]
[1725418207365,1.22,2367.8,2367.4,1.122]
[1725418207661,0.42243,2367.6,2367.4,1.122]
[1725418208352,0.42242,2367.7,2367.4,1.122]
[1725418208856,0.42244,2367.5,2367.4,0.3829]
[1725418209263,4.64644,2367.5,2367.4,0.3829]
[1725418209855,0.42246,2367.4,2367.3,0.00632791]
[1725418210455,3.2078,2367.6,2367.3,0.00632791]
[1725418211060,0.42246,2367.5,2367.3,0.00632791]
[1725418211265,0.42246,2367.4,2367.3,0.00632791]
[1725418211577,1.05618,2367.4,2367.0,0.3985]
[1725418211867,2.92,2367.2,2366.7,0.3698]
[1725418212372,0.42254,2367.0,2366.7,0.3698]
[1725418212562,0.42255,2366.9,2366.8,0.3827]
[1725418212758,0.42255,2366.9,2366.7,0.3698]
[1725418212965,3.34255,2366.9,2366.7,0.3698]
[1725418213864,0.42257,2366.8,2366.7,0.3698]
[1725418214064,3.2078,2367.0,2366.7,0.3698]
[1725418214268,3.2078,2367.0,2366.6,0.00632791]
[1725418214460,0.42259,2366.8,2366.6,0.40392791]
[1725418216068,0.42259,2366.7,2366.6,0.40392791]
[1725418216267,0.62944296,2366.7,2366.6,0.40392791]
[1725418216462,4.85504296,2366.7,2366.6,0.40392791]
[1725418216769,4.85504296,2366.7,2366.6,0.00632791]
[1725418217366,4.2256,2366.7,2366.6,0.00632791]
[1725418219875,4.86184588,2366.7,2366.6,0.00632791]
[1725418220075,0.42264,2366.4,2366.2,0.3976]
[1725418220571,7.85604,2366.4,2366.2,0.3976]
[1725418221275,0.42266,2366.3,2366.2,0.3976]
[1725418221870,6.92045588,2366.7,2366.2,0.3976]
[1725418222172,0.42262,2366.5,2366.3,0.3849]
[1725418222375,7.34304588,2366.7,2366.3,0.3849]
[1725418222573,2.92,2366.6,2366.3,0.3849]
[1725418222773,0.42263,2366.5,2366.3,0.3849]
[1725418223076,2.92,2366.6,2366.3,0.3849]
[1725418223379,0.42262,2366.5,2366.3,0.3849]
[1725418224776,7.45980342,2366.7,2366.3,0.3849]
[1725418224974,7.03720342,2366.7,2366.3,0.3849]
[1725418225678,6.7068,2366.7,2366.3,0.3849]
[1725418225868,6.7068,2366.7,2366.4,0.42264]
[1725418226074,2.9006,2366.7,2366.5,3.3009]
[1725418226373,2.9006,2366.7,2366.6,0.42261]
[1725418226577,2.9006,2366.7,2366.6,4.64821]
[1725418226770,2.9006,2366.7,2366.6,4.2256]
[1725418227380,2.9006,2366.7,2366.5,0.3809]
[1725418227781,2.9006,2366.7,2366.5,5.02911]
[1725418228076,2.9006,2366.7,2366.5,4.6065]
[1725418228871,2.9006,2366.7,2366.6,0.3729]
[1725418229377,2.9006,2366.7,2366.6,4.5985]
[1725418230680,2.3016,2366.7,2366.6,4.5985]
[1725418231484,2.3016,2366.7,2366.6,5.02111]
[1725418231883,2.3016,2366.7,2366.6,4.5985]
[1725418232684,2.3016,2366.7,2366.6,5.02111]
[1725418233276,2.3016,2366.7,2366.6,0.3729]
[1725418233479,2.3016,2366.7,2366.6,0.79551]
[1725418233689,2.3016,2366.7,2366.6,5.02111]
[1725418235187,2.3016,2366.7,2366.6,0.3729]
[1725418235388,2.72419,2366.7,2366.6,0.3729]
[1725418235794,2.3016,2366.7,2366.6,0.3729]
[1725418236480,2.72419,2366.7,2366.6,0.3729]
[1725418237491,2.3016,2366.7,2366.6,0.3729]
[1725418237687,2.3016,2366.7,2366.6,5.02111]
[1725418237893,2.3016,2366.7,2366.6,0.3729]
[1725418239890,1.1016,2366.7,2366.6,13.94111]
[1725418240795,0.00632791,2367.1,2366.9,0.42254]
[1725418240995,1.70632791,2367.1,2367.0,1.16593]
[1725418241197,1.70632791,2367.1,2367.0,4.08593]
[1725418241396,1.70632791,2367.1,2367.0,14.31073]
[1725418241593,0.212,2367.8,2367.5,0.42244]
[1725418241799,0.51,2367.8,2367.5,2.92]
[1725418242104,0.51,2367.8,2367.7,3.34241]
[1725418242291,0.5763,2368.4,2367.7,2.92]
[1725418242485,0.3643,2368.4,2367.9,6.1278]
[1725418242687,0.79292791,2368.4,2367.9,6.13412791]
[1725418242889,0.79292791,2368.4,2367.9,3.21412791]
[1725418242890,0.42233,2368.2,2367.9,3.21412791]
[1725418243992,3.29062791,2368.4,2367.9,3.21412791]
[1725418244592,0.42232,2368.3,2367.9,3.21412791]
[1725418244899,0.42232,2368.2,2367.9,3.21412791]
[1725418245590,0.79291791,2368.4,2367.9,3.63649791]
[1725418246085,0.79291791,2368.4,2368.0,0.42235]
[1725418246086,0.00632791,2368.4,2368.0,0.42235]
[1725418246289,0.00632791,2368.4,2368.3,0.4223]
[1725418246604,0.00632791,2368.4,2368.3,7.5647]
[1725418246785,0.00632791,2368.4,2368.3,0.3718]
[1725418247186,0.00632791,2368.4,2368.2,3.2078]
[1725418247392,0.00632791,2368.4,2368.3,4.2224]
[1725418252597,0.00632791,2368.4,2368.3,4.6447]
[1725418252797,0.00632791,2368.4,2368.3,10.6447]
[1725418253108,0.212,2369.1,2368.4,1.05572]